Cogmind - Beta 14 @@@ ROGUE MODE // 2024.11.08 @ 12:08:39 Player: Fangrelle Result: Destroyed by as-91816 with Assembled F-torch Performance ------------- Evolutions (0) 0 Regions Visited (2) 400 Robots Destroyed (23) 115 Value Destroyed (355) 355 Prototype IDs (0) 0 Alien Tech Used (0) 0 Bonus (0) 0 TOTAL SCORE: 870 Bonus ------- None Cogmind --------- Core Integrity 0/250 Matter 23/300 Energy 34/100 System Corruption 15% Temperature Cool (20) Movement Rolling (80) Location -10/Mines Parts ------- > --- POWER (1) -------- (None) > --- PROPULSION (2) --- Wheel Wheel > --- UTILITY (2) ------ Small Storage Unit > --- WEAPON (2) ------- (None) > --- INVENTORY (8) ---- Signal Interpreter Datajack Peak State ------------ > --- POWER ------------ Light Ion Engine > --- PROPULSION ------- Light Treads Light Treads > --- UTILITY ---------- Small Storage Unit Medium Armor Plating > --- WEAPON ----------- Autogun Autogun > --- INVENTORY -------- Light Ion Engine Wheel Compact Wheel Compact Wheel Signal Interpreter Medium Armor Plating Medium Armor Plating Medium Armor Plating [Rating: 11] Favorites ----------- Power Ion Engine Engine Ion Engine Propulsion Light Treads Treads Light Treads Wheel Wheel Utility Small Storage Unit Storage Small Storage Unit Protection Medium Armor Plating Weapon Autogun Ballistic Gun Autogun Launcher Rocket Launcher Special Weapon Mining Laser Build | -11 -10 -10 ------- Run | Yrd Mat Min Slots Evolved . | . . . Power . | . . . Propulsion . | . . . Utility . | . . . Weapon . | . . . Parts Attached 24 | 6 6 12 Power 2 | 1 1 . Engine 2 | 1 1 . Core . | . . . Reactor . | . . . Propulsion 7 | 2 1 4 Treads 2 | 2 . . Leg . | . . . Wheel 5 | . 1 4 Hover . | . . . Flight . | . . . Utility 6 | 1 2 3 Device . | . . . Storage 1 | 1 . . Processor . | . . . Hackware . | . . . Protection 5 | . 2 3 Artifact . | . . . Weapon 9 | 2 2 5 Energy Gun . | . . . Energy Cannon . | . . . Ballistic Gun 7 | 2 2 3 Ballistic Cannon . | . . . Launcher 1 | . . 1 Special Weapon 1 | . . 1 Impact Weapon . | . . . Slashing Weapon . | . . . Piercing Weapon . | . . . Special Melee Weapon . | . . . Unidentified Prototypes . | . . . Parts Lost 14 | . . 14 Power 1 | . . 1 Propulsion 4 | . . 4 Utility 3 | . . 3 Weapon 6 | . . 6 Highest Loss Streak 5 | . . 5 To Critical Strikes 1 | . . 1 Average Slot Usage (%) 93 | . 98 88 Engine 12 | . 14 10 Treads 15 | . 22 9 Wheel 10 | . 5 14 Storage 14 | . 14 14 Protection 11 | . 12 11 Ballistic Gun 27 | . 27 26 Peak Build Rating 11 | 6 11 11 Average Rating 9 | 4 9 9 On Entrance 5 | . 6 11 Naked Turns . | . . . Heaviest Build 23 | 12 23 23 Greatest Support 40 | 40 40 20 Greatest Overweight (x) 5 | 1 2 5 Average Overweight (x) 1 | . 1 1 Largest Inventory Capacity 8 | 8 8 8 Average Capacity 7 | 6 8 8 Most Carried 8 | 5 8 8 Average Carried 6 | 2 7 6 Final Capacity 8 | 8 8 8 Final Carried 8 | 5 8 2 Class Distribution -------------------- 100% | Mutant Dominant Class ---------------- Mutant | -10/Materials Mutant | -10/Mines Resources | -11 -10 -10 ----------- Run | Yrd Mat Min Matter Collected 1061 | 272 215 574 Remotely . | . . . Salvage Created 752 | 74 401 277 Parts 56 | 3 40 13 Haulers Intercepted . | . . . Recyclers Shooed . | . . . Parts Field Recycled . | . . . Retrieved Matter . | . . . Parts Self-Destructed . | . . . Prevented . | . . . Kills | -11 -10 -10 ------- Run | Yrd Mat Min Combat Hostiles Destroyed 29 | . 10 19 Guns 28 | . 10 18 AOE 1 | . . 1 Classes Destroyed 7 | 1 5 1 Builder 2 | . 2 . Recycler 1 | 1 . . Operator 2 | . 2 . Watcher 3 | . 3 . Swarmer 11 | . 6 5 Grunt 4 | . 4 . Assembled 14 | . . 14 Best Kill Streak 6 | 1 6 6 Combat Bots Only 6 | . 4 6 Max Kills in Single Turn 2 | 1 2 1 Gunslinging . | . . . Exploded 1 | . . 1 Melee . | . . . Uniques/NPCs Destroyed . | . . . Combat | -11 -10 -10 -------- Run | Yrd Mat Min Hostile Shots Fired 181 | . 30 151 Missed 57 | . 11 46 Damage Taken 1863 | . 191 1672 Core 250 | . 21 229 Absorbed by Shields . | . . . Core Remaining (%) 100 | 100 . . Volleys Fired 127 | 2 44 81 Largest 2 | 2 2 2 Hottest 100 | 40 46 100 Shots Fired 244 | 4 88 152 Gun 238 | 4 88 146 Cannon . | . . . Launcher 4 | . . 4 Special 2 | . . 2 Kinetic 238 | 4 88 146 Thermal 2 | . . 2 Explosive 4 | . . 4 Electromagnetic . | . . . Robot Hit Streak 8 | 2 8 8 Robot Miss Streak 5 | 1 3 5 Penetration Max . | . . . Secondary Targets 6 | . 1 5 Max Gunslinging Chain 1 | . 1 1 Shots Hit Robots 110 | 2 48 60 Core Hits 63 | 2 24 37 Critical Kills 2 | . 1 1 Critical Parts Destroyed 1 | . . 1 Critical Strikes 3 | . 1 2 Destroy 3 | . 1 2 Melee Attacks . | . . . Impact . | . . . Slashing . | . . . Piercing . | . . . Sneak Attacks . | . . . Combat Hostiles . | . . . Follow-up Attacks . | . . . Damage Inflicted 1802 | 25 695 1082 Guns 1630 | 25 695 910 Cannons . | . . . Explosions 148 | . . 148 Melee . | . . . Ramming . | . . . Kinetic 1630 | 25 695 910 Thermal 24 | . . 24 Explosive 148 | . . 148 Electromagnetic . | . . . Impact . | . . . Slashing . | . . . Piercing . | . . . Highest Corruption 15 | . . 15 Average Corruption 10 | . . 10 Corruption Purged . | . . . Corruption Blocked . | . . . Effects 11 | . . 11 Matter Fused 3 | . . 3 Energy Discharges 1 | . . 1 Parts Rejected 1 | . . 1 Data Loss (minor) 2 | . . 2 Data Loss (major) 1 | . . 1 Alerts 2 | . . 2 Misdirections 1 | . . 1 Overload Shots . | . . . Overflow Damage . | . . . Projectiles . | . . . Explosions . | . . . Melee . | . . . Knockbacks . | . . . Impact . | . . . Kinetic . | . . . Secondary . | . . . Self-Inflicted Damage . | . . . Shots . | . . . Rammed . | . . . Targets Rammed . | . . . Kicked . | . . . Crushed . | . . . Highest Temperature 47 | . 37 47 Average Temperature 10 | . 10 10 Received Heat Transfer 206 | . 66 140 Siege Activations . | . . . Robots Corrupted . | . . . Combat Hostiles . | . . . Parts Fried . | . . . Impact Corruptions . | . . . Robots Melted . | . . . Combat Hostiles . | . . . Parts Melted . | . . . Heat Transferred 50 | . . 50 Parts Sabotaged . | . . . Parts Stolen . | . . . Parts Stripped . | . . . Power Chain Reactions . | . . . Alert | -11 -10 -10 ------- Run | Yrd Mat Min Peak Influence 247 | 5 247 162 Initial 22 | . 3 22 Average 83 | 2 113 60 Maximum Alert Level 1 | . 1 . Low Security (%) 91 | 100 82 100 Level 1 8 | . 17 . Level 2 . | . . . Level 3 . | . . . Level 4 . | . . . Level 5 . | . . . High Security . | . . . Max Security . | . . . Squads Dispatched 2 | . 2 . Investigation 1 | . 1 . Extermination . | . . . Reinforcement 1 | . 1 . Assault . | . . . Garrison . | . . . Intercept . | . . . Searches Triggered . | . . . Construction Impeded . | . . . Haulers Reinforced . | . . . Active Scanning Responses . | . . . Cargo Convoy Interrupts . | . . . Stealth | -11 -10 -10 --------- Run | Yrd Mat Min Distress Signals . | . . . Communications Jammed . | . . . Distress Signals . | . . . Times Spotted 44 | . 19 25 Peak Tracking Total 4 | . 4 3 Tactical Retreats 1 | . 1 . Traps | -11 -10 -10 ------- Run | Yrd Mat Min Traps Triggered . | . . . Indirectly . | . . . Trap Hack Attempts . | . . . Triggered . | . . . Disarmed . | . . . Reprogrammed . | . . . Reused . | . . . Traps Extracted . | . . . Installed . | . . . Triggered . | . . . Machines | -11 -10 -10 ---------- Run | Yrd Mat Min Machines Disabled . | . . . Max in Single Turn . | . . . Machines Repaired . | . . . Machines Dismantled . | . . . Machines Sabotaged . | . . . Overloaded Fab Kills . | . . . Hacking | -11 -10 -10 --------- Run | Yrd Mat Min Machines Accessed 9 | . 9 . Terminals 8 | . 8 . Fabricators . | . . . Repair Stations . | . . . Recycling Units 1 | . 1 . Scanalyzers . | . . . Garrison Access . | . . . Total Hacks 30 | . 30 . Successful 18 | . 18 . Failed 12 | . 12 . Catastrophic 1 | . 1 . Database Lockouts . | . . . Manual 29 | . 29 . Terminals 28 | . 28 . Fabricators . | . . . Repair Stations . | . . . Recycling Units 2 | . 2 . Scanalyzers . | . . . Garrison Access . | . . . Terminal Hacks . | . . . Fabricator Hacks . | . . . Repair Station Hacks . | . . . Recycling Unit Hacks 1 | . 1 . Retrieve Components 1 | . 1 . Scanalyzer . | . . . Garrison Access Hacks . | . . . Unauthorized Hacks 17 | . 17 . Terminals 16 | . 16 . Assimilate 1 | . 1 . Botnet 8 | . 8 . Operators 1 | . 1 . Skim 6 | . 6 . Fabricators . | . . . Repair Stations . | . . . Recycling Units 1 | . 1 . Tunnel 1 | . 1 . Scanalyzers . | . . . Garrison Access . | . . . Data Cores Recovered 1 | . 1 . Used . | . . . Hacking Detections 7 | . 7 . Full Trace Events . | . . . Feedback Events . | . . . Feedback Blocked . | . . . Robot Schematics Acquired . | . . . Robots Built . | . . . Authchips . | . . . Time . | . . . Total Robot Build Rating . | . . . Part Schematics Acquired . | . . . Parts Built . | . . . Authchips . | . . . Time . | . . . Total Part Build Rating . | . . . Parts Repaired . | . . . Time . | . . . Parts Recycled . | . . . Recycled Matter . | . . . Retrieved Matter . | . . . Retrieved Components 9 | . 9 . Parts Scanalyzed . | . . . Part Schematics Acquired . | . . . Parts Damaged . | . . . Bothacking | -11 -10 -10 ------------ Run | Yrd Mat Min Used RIF Installer . | . . . Robots Hacked . | . . . Non-combat . | . . . Combat . | . . . Robot Hacks Applied . | . . . Relay Couplers Released . | . . . Fabnet Peak Effective % . | . . . Robots Rewired . | . . . Allies Hacked . | . . . Hacks Repelled . | . . . Allies | -11 -10 -10 -------- Run | Yrd Mat Min Total Allies . | . . . Largest Group . | . . . Highest-Rated Group . | . . . Highest-Rated Ally . | . . . Total Orders . | . . . Ally Attacks . | . . . Total Damage . | . . . Kills . | . . . Allies Corrupted . | . . . Allies Melted . | . . . Intel | -11 -10 -10 ------- Run | Yrd Mat Min Robot Analysis Total . | . . . Derelict Logs Recovered 1 | . . 1 Drone Launches . | . . . Drone Recoveries . | . . . Exploration | -11 -10 -10 ------------- Run | Yrd Mat Min Turns Passed 1891 | 85 909 897 Spaces Moved 1204 | 45 575 584 Core 14 | 6 . 8 Treads 305 | 39 266 . Legs . | . . . Wheels 885 | . 309 576 Hover . | . . . Flight . | . . . Fastest Speed 50 | 50 110 80 Average Speed 120 | 146 133 105 Slowest Speed 300 | 160 160 300 Overloaded Moves . | . . . Propulsion Burnouts . | . . . Robots Hopped . | . . . Cave-ins Triggered . | . . . Exploration Rate (%) 64 | 4 93 97 Regions Visited 2 Branch Regions 1 Pre-discovered Areas 4 | . 2 2 Known Exits Taken . | . . . Unknown Exits Taken 2 | 1 1 . Scrap Searched 1 | . . 1 Spaces Dug . | . . . Terrain Destroyed 30 | . . 30 Melee . | . . . Projectile 1 | . . 1 AOE 29 | . . 29 Terrain Rammed . | . . . Walls Destroyed . | . . . Machines Disabled . | . . . Actions | -11 -10 -10 --------- Run | Yrd Mat Min Total 1438 | 57 645 736 Wait 55 | . . 55 Move 1202 | 44 574 584 Hop . | . . . Pick Up 18 | 5 10 3 Fast Attach 13 | 6 4 3 Attach 8 | . . 8 Detach . | . . . Swap 3 | . 2 1 Drop 12 | . 11 1 Fire 127 | 2 44 81 Melee . | . . . Ram . | . . . Kick . | . . . Crush . | . . . Escape Stasis . | . . . Rewire . | . . . Trap . | . . . Miscellaneous . | . . . Route ------- -11/Scrapyard -10/Materials (discovered 4 exits: [*Mat x3] / [*Min]) -10/Mines (discovered 3 exits: [*Mat x2] / [*Sub]) History --------- Turn | Location | Event 5 | -11/Scrapyard | Discovered new exit (range 15) 86 | -11/Scrapyard | Entered Materials 312 | -10/Materials | Build established: Mutant 371 | -10/Materials | Discovered new exit (range 10) 560 | -10/Materials | Discovered new exit (range 16) 690 | -10/Materials | Discovered new exit (range 12) 913 | -10/Materials | Discovered new exit (range 5) 923 | -10/Materials | Loaded intel: 11 interactive machine locations 977 | -10/Materials | Learned location of Subcaves (-10) 991 | -10/Materials | Learned 4 Subcaves zone layouts 994 | -10/Materials | Learned 2 Mines zone layouts 995 | -10/Materials | Entered Mines 1094 | -10/Mines | Discovered new exit (range 5) 1129 | -10/Mines | Learned location of Storage (-8) 1290 | -10/Mines | Learned location of Zion (-7) 1338 | -10/Mines | Received a Rocket Launcher from a helpful Derelict 1384 | -10/Mines | Discovered new exit (range 5) 1436 | -10/Mines | Discovered new exit (range 5) 1501 | -10/Mines | Assembled infested the area 1621 | -10/Mines | Core integrity fell below 50% 1729 | -10/Mines | System corruption reached 10% 1747 | -10/Mines | Core integrity fell below 20% 1892 | -10/Mines | Destroyed by as-91816 with Assembled F-torch Last Messages --------------- 01811_ System corrupted: Substantial component data lost. 01815_ Acquired Wheel. 01822_ Acquired 18 matter. 01845_ System corrupted: IFF burst signal emitted. 01852_ Acquired 12 matter. 01859_ Knocked back. 01860_ System corrupted: Matter fused (-7). 01862_ Wheel destroyed. 01866_ Autogun destroyed. 01866_ System corrupted by crushing effect (+3). 01869_ Autogun destroyed. 01878_ K-01 Serf collects debris. 01878_ Acquired Mining Laser. 01880_ Acquired 24 matter. 01882_ K-01 Serf collects debris. 01883_ Wheel destroyed. 01887_ System corrupted: Component data lost. 01890_ Mining Laser destroyed. 01890_ System corrupted by crushing effect (+2). 01891_ Acquired Wheel. Map ----- +----------------------------------------------------+ | #???####??# ## #?# #??# #???### ##????????? | | #??## ##?# #?# #??# #?????## ##???????? | | # ##?## ###### ##### #??# #??????# ##??????? | | # #### ##??# # #### ######## ##?????? | | # ##?# ### #?????? | | ####### #?# #?################# ####??? | | ??????#### #?# #?????????????????# %% #??? | | ?????????## ### #?????????????????## %## #??? | | #?????????# ## #??????????????????## =## #??? | | #?????????# ## #??????????????????## %%### #??? | | #?????????## ## #?????????????????## = #?# #### | | #??????????## #?????????#########= #?# | | #???????????# ####?????????# ==!%= ##?###### | | ????????##### #????????????# %=! #???????? | | ???????## ## #????????????# ## ## % #???????? | | ???????# #????????????# ## ###* #??????? | | ??????## | !#????????????# ## #?# #??????? | | ??????# = ##????????????# ## #?# #??????? | | #####?# ##??# ????????# ## #? ##??????? | | #?## ### #??## ????????# ## ## ##???????? | | ### #??##??# #?## ???????## ## ## #????????? | | ??# #?###### ### ??????## a ### ##????????? | | ??# #?# ## ????### #####?????????? | | ??# #?# ####### ????#;a ## ##?????????????? | | ??# #?# #??????# ????# a ######??????????????? | | ??# #?# #???????# ##?##@ #???????????????????? | | ??# #?# #???????# ### ##??????????????????? | | ### ### #####???# ##?????????????????? | | = #??## [ #?????????????????? | | ####### ### #??# [%* #?????????????????? | | ??????# #?# #??# *r==! ##????????????????? | | ??????# #?# #??## !=### ##???????????????? | | ??????# #?# #???## %##?##[! #???????????????? | | ??????# ### #?# ## |#???#%= #???????????????? | | ?????## # # # # #???#!= #???????????????? | | ?????## ## #???# ##???????????????? | | ?###### # #### ##???# #??????????####??? | | ## ##### ##?####????## #?????????## ###? | | # #??????????## #??#####??# ## | | # # ####????####???# #### ##?## | | # #????### #?## ## #??# | | ##???## ## ! | #### | | ## ##???# ## | | ?## #????# | | ??# #????## ## * | | ?## % #?????## #### ### | | ## # #??????### ##??#####?## | | ### ##??############## ##?###??????# | | ##?### !#### ##?????## #?# ##?????# | | ##??## #????## ## ##????# | +----------------------------------------------------+ Best States ------------- Heat Dissipation 25 Energy Generation 10 Energy Capacity 250 Matter Stores 300 Matter Capacity 300 Sight Range 16 Terrain Scan Density 10 Armor Coverage 225 Evasion (%) 44 Recoil Reduction 2 Item Schematics ----------------- None Robot Schematics ------------------ None Fabricated ------------ Nothing Alien Tech Used ----------------- None Achievements -------------- None Challenges ------------ None Game ------ Seed TargetingPitchforkMallet Manual? 0 Play Time 00:14:55 Cumulative 22.3 hours Start 2024.11.08 @ 11:53:51 End 2024.11.08 @ 12:08:39 Sessions 1 Manual Loads 0 Difficulty Rogue Special Mode None Game No. 45 Rogue 45 Adventurer 0 Explorer 0 Win Type - Total 0 Types 0/0/0/0/0/0/0/0/0 Lore% 19 Gallery% 22 Achievement% 28 Wizard Run 0 Options --------- Layout 0 ASCII 0 Keyboard 0 Movement Mouse Keybinds 0 Fullscreen 1 Font 24/Smallcaps Map View 183x50 Zoom Use 4% Tactical HUD 1 Map Filters NONE Filters NONE Steam 1 RUN: 36e019d3-a06e-4c8f-a88b-95b63b9d8711